bitfinex-derivatives/quotes_BTCF0:USTF0_20241217
["timestamp","ask_amount","ask_price","bid_price","bid_amount"]
[1734421497230,0.046802,106830.0,106820.0,0.23896301]
[1734421498535,0.046802,106830.0,106820.0,0.59976301]
[1734421499636,0.046802,106830.0,106820.0,0.23896301]
[1734421500338,0.50952558,106830.0,106820.0,0.04774669]
[1734421500533,0.14872558,106830.0,106820.0,0.04774669]
[1734421501438,0.50952558,106830.0,106820.0,0.04774669]
[1734421502031,0.45777879,106830.0,106810.0,0.0970038]
[1734421502231,0.046807,106820.0,106810.0,0.21034657]
[1734421502432,0.45777879,106830.0,106810.0,0.16016978]
[1734421502631,0.09698379,106820.0,106810.0,0.15966978]
[1734421503034,0.09698379,106820.0,106810.0,0.15974817]
[1734421503331,0.046807,106820.0,106810.0,0.15974817]
[1734421503731,0.046807,106820.0,106810.0,0.16024817]
[1734421504727,0.09698379,106820.0,106810.0,0.16024817]
[1734421504931,0.046807,106820.0,106810.0,0.16024817]
[1734421505434,0.046807,106820.0,106810.0,0.21042496]
[1734421505634,0.046807,106820.0,106810.0,0.20992496]
[1734421507733,0.046807,106820.0,106810.0,0.16359795]
[1734421512047,0.046807,106820.0,106810.0,0.11342116]
[1734421512347,0.046807,106820.0,106810.0,0.16359795]
[1734421514337,0.09706043,106820.0,106810.0,0.04769278]
[1734421514751,0.29108364,106820.0,106810.0,0.04769278]
[1734421514939,0.29108364,106820.0,106810.0,0.14468057]
[1734421515441,0.29108364,106820.0,106810.0,0.09450378]
[1734421519734,0.70206043,106820.0,106810.0,0.04769278]
[1734421519936,0.87613722,106820.0,106810.0,0.04769278]
[1734421521343,0.82596043,106820.0,106810.0,0.04769278]
[1734421521751,0.87613722,106820.0,106810.0,0.04769278]
[1734421527352,0.98822048,106820.0,106810.0,0.04769278]
[1734421530859,0.93804369,106820.0,106810.0,0.04769278]
[1734421545465,0.98822048,106820.0,106810.0,7.839e-05]
[1734421545671,0.93804369,106820.0,106810.0,7.839e-05]
[1734421545860,0.98822048,106820.0,106810.0,7.839e-05]
[1734421547763,0.98837852,106820.0,106810.0,7.839e-05]
[1734421548978,1.01623746,106820.0,106810.0,7.839e-05]
[1734421551788,1.06237397,106820.0,106810.0,7.839e-05]
[1734421554169,1.11255076,106820.0,106810.0,7.839e-05]
[1734421554376,0.046812,106810.0,106800.0,0.1]
[1734421554576,0.51735776,106810.0,106800.0,0.1]
[1734421554878,0.61434655,106810.0,106800.0,0.1]
[1734421555274,0.61434655,106810.0,106800.0,0.10006568]
[1734421556071,0.046816,106800.0,106790.0,0.0005]
[1734421556276,0.75186958,106800.0,106790.0,0.0005]
[1734421556785,0.04682,106790.0,106780.0,0.21830179]
[1734421556986,0.09699679,106790.0,106780.0,0.21830179]
[1734421557183,0.04682,106790.0,106780.0,0.2183929]
[1734421557578,0.046818,106800.0,106790.0,0.04682]
[1734421557787,0.71782039,106820.0,106800.0,0.046816]
[1734421557788,0.84089837,106820.0,106800.0,0.046816]
[1734421558085,0.51990637,106820.0,106810.0,0.09698779]
[1734421558387,0.40768464,106820.0,106810.0,0.09698779]
[1734421558574,0.40768464,106820.0,106810.0,0.21688779]
[1734421558776,0.04688464,106820.0,106810.0,0.21688779]
[1734421559079,0.09706143,106820.0,106810.0,0.166711]
[1734421563583,0.04688464,106820.0,106810.0,0.166711]
[1734421563894,0.09706143,106820.0,106810.0,0.166711]
[1734421564588,0.04688464,106820.0,106810.0,0.166711]
[1734421564797,0.09706143,106820.0,106810.0,0.166711]
[1734421565683,0.09706143,106820.0,106810.0,0.1199]
[1734421566283,0.09706143,106820.0,106810.0,0.1662372]
[1734421567792,0.09706143,106820.0,106810.0,0.0463372]
[1734421567993,0.04681,106810.0,106800.0,0.526813]
[1734421568494,0.04681,106810.0,106800.0,0.57369298]
[1734421569896,0.09698679,106810.0,106800.0,0.57369298]
[1734421570194,0.04681,106810.0,106800.0,0.62386977]
[1734421570396,0.09698679,106810.0,106800.0,0.40767998]
[1734421570597,0.09698679,106810.0,106800.0,0.04687998]
[1734421570797,0.046815,106800.0,106790.0,0.294618]
[1734421571294,0.046815,106800.0,106790.0,0.2478]
[1734421571688,0.09699179,106800.0,106790.0,0.2478]
[1734421571891,0.09699179,106800.0,106790.0,0.2483]
[1734421572091,0.09699179,106800.0,106790.0,0.295119]
[1734421572689,0.09699179,106800.0,106790.0,0.167319]
[1734421572890,0.09699179,106800.0,106790.0,0.166819]
[1734421573188,0.09699179,106800.0,106790.0,0.04754428]
[1734421573389,0.09699179,106800.0,106780.0,0.60209869]
[1734421573702,0.046819,106790.0,106780.0,0.61085753]
[1734421573993,0.09699179,106800.0,106780.0,0.60209869]
[1734421574185,0.046819,106790.0,106780.0,0.60209869]
[1734421574788,0.046819,106790.0,106780.0,0.5519219]
[1734421574991,0.046819,106790.0,106780.0,0.60209869]
[1734421575895,0.046819,106790.0,106780.0,0.5519219]
[1734421576199,0.046819,106790.0,106780.0,0.60209869]
[1734421576893,0.046819,106790.0,106780.0,0.65227548]
[1734421577700,0.046819,106790.0,106780.0,0.6979701]
[1734421578801,0.046819,106790.0,106780.0,0.6984701]
[1734421579901,0.58811296,106810.0,106780.0,0.67966031]
[1734421579902,0.49167996,106810.0,106780.0,0.67966031]
[1734421580094,0.046818,106800.0,106790.0,0.58419279]
[1734421581903,0.046818,106800.0,106790.0,0.22339279]
[1734421582099,0.046818,106800.0,106790.0,0.173216]
[1734421582407,0.046818,106800.0,106790.0,0.22339279]
[1734421582704,0.046818,106800.0,106790.0,0.046816]
[1734421584102,0.174318,106800.0,106790.0,0.046816]
[1734421584805,0.303718,106800.0,106790.0,0.046816]
[1734421585108,0.35389479,106800.0,106790.0,0.046816]
[1734421585403,0.046819,106790.0,106780.0,0.64865342]
[1734421590016,0.046819,106790.0,106780.0,0.69883021]
[1734421590811,0.046819,106790.0,106780.0,0.64865342]
[1734421591705,0.046819,106790.0,106780.0,0.52325342]
[1734421592113,0.046819,106790.0,106780.0,0.47307663]
[1734421592306,0.046819,106790.0,106780.0,0.52325342]
[1734421592907,0.046819,106790.0,106780.0,0.57293021]
[1734421593607,0.046819,106790.0,106780.0,0.52275342]
[1734421593907,0.046819,106790.0,106780.0,0.57293021]
[1734421594213,0.046819,106790.0,106780.0,0.52275342]
[1734421594912,0.046819,106790.0,106780.0,0.47257663]
[1734421595296,0.046819,106790.0,106780.0,0.52275342]
[1734421595502,0.09699579,106790.0,106780.0,0.04578573]
[1734421596814,0.046819,106790.0,106780.0,0.09596252]
[1734421597011,0.046819,106790.0,106780.0,0.40658573]
[1734421597209,0.046819,106790.0,106770.0,0.45780179]
[1734421597411,0.046822,106780.0,106770.0,0.45780179]
[1734421597813,0.046822,106780.0,106770.0,0.45830179]
[1734421598117,0.046822,106780.0,106770.0,0.47696697]
[1734421598306,0.046822,106780.0,106770.0,0.47705916]
[1734421599008,0.046822,106780.0,106770.0,0.47655916]
[1734421599809,0.046822,106780.0,106770.0,0.47705916]
[1734421600411,0.046822,106780.0,106770.0,0.52277211]
[1734421601018,0.04682,106790.0,106780.0,0.046818]
[1734421601319,0.04682,106790.0,106780.0,0.50797158]
[1734421601719,0.04682,106790.0,106780.0,0.45779479]
[1734421604508,0.04682,106790.0,106780.0,0.407618]
[1734421604713,0.04682,106790.0,106780.0,0.45779479]
[1734421614028,0.04682,106790.0,106780.0,0.407618]
[1734421614416,0.04682,106790.0,106780.0,0.45779479]
[1734421617026,0.13088996,106790.0,106780.0,0.45779479]
[1734421620228,0.13088996,106790.0,106780.0,0.407618]
[1734421620428,0.13088996,106790.0,106780.0,0.45779479]
[1734421621120,0.04682,106790.0,106780.0,0.45779479]
[1734421621321,0.04682,106790.0,106780.0,0.407618]
[1734421624127,0.04682,106790.0,106780.0,0.45779479]
[1734421625426,0.04682,106790.0,106780.0,0.407618]
[1734421626632,0.04682,106790.0,106780.0,0.45779479]
[1734421628420,0.04682,106790.0,106780.0,0.407618]
[1734421629326,0.97357975,106800.0,106780.0,0.41637684]
[1734421629636,0.04682,106790.0,106780.0,0.407618]
[1734421629823,0.04682,106790.0,106780.0,0.046818]
[1734421630338,0.13088996,106790.0,106780.0,0.046818]
[1734421630832,0.13088996,106790.0,106770.0,0.84424711]
[1734421631020,0.046822,106780.0,106770.0,0.77127111]
[1734421631821,0.046822,106780.0,106770.0,0.72109432]
[1734421632036,0.046822,106780.0,106770.0,0.77127111]
[1734421638428,0.50461679,106790.0,106770.0,0.78002995]
[1734421638734,0.046822,106780.0,106770.0,0.78002995]
[1734421639539,0.046822,106780.0,106770.0,0.77127111]
[1734421640124,0.09699879,106780.0,106770.0,0.72109432]
[1734421640331,0.09699879,106780.0,106770.0,0.07322916]
[1734421640332,0.50797558,106780.0,106770.0,0.07322916]
[1734421640640,0.87107558,106780.0,106770.0,0.07322916]
[1734421640833,0.87107558,106780.0,106770.0,0.06447032]
[1734421641432,0.82089879,106780.0,106770.0,0.06447032]
[1734421642832,0.46009879,106780.0,106770.0,0.06447032]
[1734421643026,0.82089879,106780.0,106770.0,0.06447032]
[1734421645932,0.87107558,106780.0,106770.0,0.06447032]
[1734421646138,0.87107558,106780.0,106770.0,9.219e-05]
[1734421646338,0.46009879,106780.0,106770.0,9.219e-05]
[1734421646539,0.82089879,106780.0,106770.0,9.219e-05]
[1734421648935,0.409922,106780.0,106770.0,0.09709598]
[1734421649443,0.409922,106780.0,106770.0,0.04691919]
[1734421649635,0.46009879,106780.0,106770.0,0.04691919]
[1734421649831,0.409922,106780.0,106770.0,0.04691919]
[1734421650045,0.409922,106780.0,106770.0,0.09709598]
[1734421650239,0.291422,106780.0,106770.0,0.45789598]
[1734421652032,0.046822,106780.0,106770.0,0.50807277]
[1734421652238,0.3608,106790.0,106770.0,0.70659598]
[1734421652438,0.046818,106790.0,106780.0,0.45779779]
[1734421653649,0.046818,106790.0,106780.0,0.407621]
[1734421654842,0.046818,106790.0,106780.0,0.45779779]
[1734421656145,0.046818,106790.0,106780.0,0.407621]
[1734421656146,0.18106475,106790.0,106780.0,0.407621]
[1734421656651,0.13088796,106790.0,106780.0,0.046821]
[1734421656854,0.18106475,106790.0,106780.0,0.046821]
[1734421657148,0.09699479,106790.0,106780.0,0.046821]
[1734421657564,0.18106475,106790.0,106780.0,0.046821]
[1734421658355,0.18106475,106790.0,106770.0,0.60959219]
[1734421658649,0.046822,106780.0,106770.0,0.70659298]
[1734421661451,0.046822,106780.0,106770.0,0.65641619]
[1734421661654,0.046822,106780.0,106770.0,0.70659298]
[1734421662543,0.18106475,106790.0,106780.0,0.046822]
[1734421662544,0.04682,106790.0,106780.0,0.046822]
[1734421662747,0.04682,106790.0,106780.0,0.407622]
[1734421663546,0.09699679,106790.0,106780.0,0.407622]
[1734421664250,0.04682,106790.0,106780.0,0.407622]
[1734421664448,0.04682,106790.0,106780.0,0.046822]
[1734421664953,0.04682,106790.0,106780.0,0.407622]
[1734421667657,0.04682,106790.0,106780.0,0.45779879]
[1734421667847,0.04682,106790.0,106780.0,0.09699879]
[1734421668951,0.04682,106790.0,106780.0,0.45779879]
[1734421670547,0.04682,106790.0,106780.0,0.407622]
[1734421670960,0.04682,106790.0,106780.0,0.45779879]
[1734421671658,0.04682,106790.0,106780.0,0.407622]
[1734421671965,0.04682,106790.0,106780.0,0.45779879]
[1734421675465,0.04682,106790.0,106780.0,0.09699879]
[1734421676163,0.04682,106790.0,106780.0,0.11614902]
[1734421676368,0.04682,106790.0,106780.0,0.47694902]
[1734421677051,0.04682,106790.0,106780.0,0.42677223]
[1734421677256,0.04682,106790.0,106780.0,0.47694902]
[1734421677465,0.04682,106790.0,106780.0,0.42677223]
[1734421679157,0.04682,106790.0,106780.0,0.47694902]
[1734421679858,0.13088996,106790.0,106780.0,0.42677223]
[1734421680068,0.13088996,106790.0,106780.0,0.47694902]
[1734421680559,0.18106675,106790.0,106780.0,0.42677223]
[1734421682071,0.13088996,106790.0,106780.0,0.42677223]
[1734421685470,0.13088996,106790.0,106780.0,0.06597223]
[1734421686364,0.18106675,106790.0,106780.0,0.06597223]
[1734421687163,0.13088996,106790.0,106780.0,0.06597223]
[1734421687361,0.18106675,106790.0,106780.0,0.06597223]
[1734421688569,0.13088996,106790.0,106780.0,0.06597223]
[1734421689764,0.13088996,106790.0,106780.0,0.01915023]
[1734421693378,0.49168996,106790.0,106770.0,0.59017255]
[1734421693577,0.046822,106780.0,106770.0,0.59017255]
[1734421694476,0.046822,106780.0,106770.0,0.59026143]
[1734421695586,0.046822,106780.0,106770.0,0.39192809]
[1734421704803,0.046822,106780.0,106770.0,0.75272809]
[1734421707801,0.046822,106780.0,106770.0,0.7025513]
[1734421708002,0.046822,106780.0,106770.0,0.75272809]
[1734421709299,0.046822,106780.0,106770.0,0.39192809]
[1734421709893,0.046822,106780.0,106770.0,0.3417513]
[1734421710207,0.046822,106780.0,106770.0,0.39192809]
[1734421710406,0.046822,106780.0,106770.0,0.40068693]
[1734421710901,0.58868675,106790.0,106770.0,0.40068693]
[1734421711106,0.046822,106780.0,106770.0,0.39192809]
[1734421712210,0.046822,106780.0,106770.0,0.3417513]
[1734421712701,0.046822,106780.0,106770.0,0.34510309]
[1734421712702,0.407622,106780.0,106770.0,0.34510309]
[1734421714196,0.046822,106780.0,106770.0,0.34510309]
[1734421715308,0.13089196,106780.0,106770.0,0.34510309]
[1734421716201,0.49169196,106780.0,106770.0,0.1656263]
[1734421716403,0.13089196,106780.0,106770.0,0.0462263]
[1734421716704,0.25339196,106780.0,106770.0,0.0462263]
[1734421717303,0.61419196,106780.0,106770.0,0.0462263]
[1734421718713,0.530122,106780.0,106770.0,0.0462263]
[1734421719402,0.530122,106780.0,106760.0,0.60073963]
[1734421719403,0.046827,106770.0,106760.0,0.01833584]
[1734421719610,0.046831,106760.0,106750.0,0.251]
[1734421719807,0.046831,106760.0,106750.0,0.31977952]
[1734421720506,0.046831,106760.0,106750.0,0.31989784]
[1734421721104,0.046831,106760.0,106750.0,0.36723384]
[1734421721307,0.407631,106760.0,106750.0,0.36723384]
[1734421721610,0.407631,106760.0,106750.0,0.32039784]
[1734421722010,0.407631,106760.0,106750.0,0.31989784]
[1734421722216,0.407631,106760.0,106750.0,0.35842887]
[1734421723109,0.407631,106760.0,106750.0,0.23152887]
[1734421723506,0.407631,106760.0,106750.0,0.10792887]
[1734421724020,0.407631,106760.0,106750.0,0.10742887]
[1734421725015,0.407631,106760.0,106750.0,0.10792887]
[1734421725515,0.046831,106760.0,106750.0,0.10792887]
[1734421725917,0.046831,106760.0,106750.0,0.15476487]
[1734421726118,0.046831,106760.0,106750.0,0.15426487]
[1734421727015,0.046831,106760.0,106750.0,0.15476487]
[1734421728024,0.046831,106760.0,106750.0,0.15426487]
[1734421729020,0.046831,106760.0,106750.0,0.15476487]
[1734421732321,0.046831,106760.0,106750.0,0.10458808]
[1734421732521,0.046831,106760.0,106750.0,0.15476487]
[1734421733217,0.046831,106760.0,106750.0,0.10458808]
[1734421733415,0.046831,106760.0,106750.0,0.15476487]
[1734421734126,0.046831,106760.0,106750.0,0.15426487]
[1734421734428,0.046831,106760.0,106750.0,0.10408808]
[1734421734724,0.046831,106760.0,106750.0,0.15426487]
[1734421737524,0.09700779,106760.0,106750.0,0.10408808]
[1734421737725,0.09700779,106760.0,106750.0,0.15426487]
[1734421737925,0.09700779,106760.0,106750.0,0.10408808]
[1734421738132,0.21290779,106760.0,106750.0,0.10408808]
[1734421740620,0.21290779,106760.0,106750.0,0.15426487]
[1734421740817,0.57370779,106760.0,106750.0,0.15426487]
[1734421741013,0.21290779,106760.0,106750.0,0.15426487]
[1734421741818,0.21290779,106760.0,106750.0,0.10408808]
[1734421742428,0.162731,106760.0,106750.0,0.10408808]
[1734421743629,0.21290779,106760.0,106750.0,0.10408808]
[1734421745916,0.57370779,106760.0,106750.0,0.05725208]
[1734421746122,0.62388458,106760.0,106750.0,0.00011832]
[1734421746430,0.74848458,106760.0,106750.0,0.00011832]
[1734421748420,0.83255454,106760.0,106750.0,0.00011832]
[1734421749324,0.86135827,106760.0,106750.0,0.00011832]
[1734421749730,0.97358,106760.0,106750.0,0.00011832]
[1734421750527,0.86135827,106760.0,106750.0,0.00011832]
[1734421750731,0.97358,106760.0,106750.0,0.00011832]
[1734421751427,0.86135827,106760.0,106750.0,0.00011832]
[1734421753227,0.67693473,106760.0,106750.0,0.05029511]
[1734421754027,0.287331,106760.0,106750.0,0.09713111]
[1734421756933,0.046831,106760.0,106750.0,0.09713111]
[1734421757135,0.046831,106760.0,106750.0,0.12557084]
[1734421758335,0.046831,106760.0,106750.0,0.48637084]
[1734421758629,0.046831,106760.0,106750.0,0.12557084]
[1734421758843,0.046831,106760.0,106750.0,0.48637084]
[1734421759033,0.046831,106760.0,106750.0,0.73277084]
[1734421759224,0.51695125,106770.0,106750.0,0.73277084]
[1734421759423,0.43648025,106770.0,106760.0,0.09700779]
[1734421761130,0.43598025,106770.0,106760.0,0.09700779]
[1734421761525,0.407629,106770.0,106760.0,0.09700779]
[1734421761725,0.407629,106770.0,106760.0,0.046831]
[1734421764024,0.407629,106770.0,106760.0,0.09700779]
[1734421766221,0.046829,106770.0,106760.0,0.09700779]
[1734421766630,0.046829,106770.0,106760.0,0.50798458]
[1734421766836,0.20327526,106780.0,106770.0,0.046827]
[1734421767037,0.20277526,106780.0,106770.0,0.09700379]
[1734421768032,0.20327526,106780.0,106770.0,0.09700379]
[1734421768736,0.25345205,106780.0,106770.0,0.046827]
[1734421769127,0.25295205,106780.0,106770.0,0.046827]
[1734421769335,0.22380079,106780.0,106770.0,0.046827]
[1734421770141,0.22430079,106780.0,106770.0,0.046827]
[1734421771131,0.22380079,106780.0,106770.0,0.046827]
[1734421772046,0.22430079,106780.0,106770.0,0.046827]
[1734421772232,0.22430079,106780.0,106770.0,0.07572175]
[1734421772436,0.22430079,106780.0,106770.0,0.046827]
[1734421773144,0.22380079,106780.0,106770.0,0.046827]
[1734421774237,0.22430079,106780.0,106770.0,0.046827]
[1734421774442,0.58510079,106780.0,106770.0,0.046827]
[1734421774839,0.046827,106770.0,106760.0,0.58400579]
[1734421775144,0.046827,106770.0,106760.0,0.533829]
[1734421775343,0.046827,106770.0,106760.0,0.58400579]
[1734421776033,0.046827,106770.0,106760.0,0.61718123]
[1734421776452,0.046827,106770.0,106760.0,0.5619386]
[1734421776639,0.046827,106770.0,106760.0,0.61718123]
[1734421778544,0.046827,106770.0,106760.0,0.13018123]
[1734421779538,0.10206963,106770.0,106760.0,0.0749386]
[1734421779741,0.046827,106770.0,106760.0,0.13018123]
[1734421780539,0.170827,106770.0,106760.0,0.13018123]
[1734421782452,0.22606963,106770.0,106760.0,0.0281096]
[1734421782646,0.22606963,106770.0,106750.0,0.184502]
[1734421782647,0.046831,106760.0,106750.0,0.184502]
[1734421782949,0.58686963,106770.0,106750.0,0.23974463]
[1734421783151,0.58686963,106770.0,106750.0,0.184502]
[1734421783351,0.046831,106760.0,106750.0,0.184502]
[1734421784042,0.046831,106760.0,106750.0,0.23974463]
[1734421785055,0.046831,106760.0,106750.0,0.26781182]
[1734421788256,0.046831,106760.0,106750.0,0.21256919]
[1734421788556,0.046831,106760.0,106750.0,0.26781182]
[1734421789751,0.046831,106760.0,106750.0,0.62861182]
[1734421790251,0.046831,106760.0,106750.0,0.57336919]
[1734421790449,0.046831,106760.0,106750.0,0.62861182]
[1734421791258,0.046831,106760.0,106750.0,0.62811182]
[1734421792251,0.046831,106760.0,106750.0,0.57286919]
[1734421792454,0.046831,106760.0,106750.0,0.62811182]
[1734421793858,0.046831,106760.0,106750.0,0.51011182]
[1734421794357,0.46287363,106760.0,106750.0,0.09406919]
[1734421794554,0.59117363,106760.0,106750.0,0.09406919]
[1734421795047,0.52680431,106760.0,106750.0,0.09406919]
[1734421796147,0.57363531,106760.0,106750.0,0.09406919]
[1734421796366,0.535931,106760.0,106750.0,0.09406919]
[1734421796542,0.535931,106760.0,106750.0,0.14931182]
[1734421796749,0.175131,106760.0,106750.0,0.09406919]
[1734421796943,0.23037363,106760.0,106750.0,0.04723519]
[1734421797250,0.35307363,106760.0,106750.0,0.04723519]
[1734421797445,0.297831,106760.0,106750.0,0.04723519]
[1734421797654,0.297831,106760.0,106750.0,0.09407119]
[1734421798651,0.297831,106760.0,106750.0,0.14931382]
[1734421801051,0.046831,106760.0,106750.0,0.51011382]
[1734421801259,0.046831,106760.0,106750.0,0.62921382]
[1734421803360,0.046831,106760.0,106750.0,0.57397119]
[1734421804056,0.10207363,106760.0,106750.0,0.45487119]
[1734421804261,0.34607363,106760.0,106750.0,0.45487119]
[1734421804654,0.70687363,106760.0,106750.0,0.09407119]
[1734421811749,0.72885921,106760.0,106750.0,0.09407119]
[1734421814256,0.36805921,106760.0,106750.0,0.09407119]
[1734421816468,0.72885921,106760.0,106750.0,0.04723519]
[1734421818769,0.046836,106750.0,106740.0,0.42465743]
[1734421819065,0.163336,106750.0,106740.0,0.42465743]
[1734421819264,0.163336,106750.0,106740.0,0.42415743]
[1734421819763,0.163336,106750.0,106740.0,0.4242644]
[1734421819970,0.1165,106750.0,106740.0,0.44591981]
[1734421820163,0.1165,106750.0,106740.0,0.44641981]
[1734421820565,0.163336,106750.0,106740.0,0.44641981]
[1734421821566,0.09896625,106750.0,106740.0,0.45517865]
[1734421821769,0.09896625,106750.0,106740.0,0.39993602]
[1734421821961,0.09896625,106750.0,106740.0,0.44641981]
[1734421824169,0.09896625,106750.0,106740.0,0.44591981]
[1734421825468,0.09896625,106750.0,106740.0,0.4459337]
[1734421825970,0.09896625,106750.0,106740.0,0.39067718]
[1734421826378,0.09896625,106750.0,106740.0,0.06860038]
[1734421826571,0.09896625,106750.0,106740.0,0.42940038]
[1734421832973,0.09896625,106750.0,106740.0,0.06860038]
[1734421833179,0.09896625,106750.0,106740.0,0.42940038]
[1734421833889,0.09896625,106750.0,106740.0,0.06860038]
[1734421834678,0.046836,106750.0,106740.0,0.06860038]
[1734421836466,0.046836,106750.0,106740.0,0.02176238]
[1734421836467,0.46289252,106750.0,106740.0,0.02176238]
[1734421836869,0.41605652,106750.0,106740.0,0.02176238]
[1734421837079,0.41605652,106750.0,106740.0,0.03052122]
[1734421837385,0.40694072,106750.0,106740.0,0.02176238]
[1734421837571,0.40694967,106750.0,106740.0,0.02176238]
[1734421837968,0.45378567,106750.0,106740.0,0.06860238]
[1734421841285,0.45378567,106750.0,106740.0,0.02176238]
[1734421845979,0.3985202,106750.0,106740.0,0.12386285]
[1734421846179,0.046836,106750.0,106740.0,0.17912832]
[1734421846483,0.046836,106750.0,106740.0,0.12386285]
[1734421847283,0.046836,106750.0,106740.0,0.06859738]
[1734421847675,0.046836,106750.0,106740.0,0.12386285]
[1734421851988,0.10210147,106750.0,106740.0,0.06859738]
[1734421852882,0.046836,106750.0,106740.0,0.12386285]
[1734421853283,0.046836,106750.0,106740.0,0.06859738]
[1734421854986,0.046836,106750.0,106740.0,0.12386285]
[1734421856501,0.41666547,106760.0,106740.0,0.50315504]
[1734421856704,0.46349547,106760.0,106750.0,0.046831]
[1734421857400,0.46299547,106760.0,106750.0,0.046831]
[1734421858409,0.46349547,106760.0,106750.0,0.046831]
[1734421861198,0.46299547,106760.0,106750.0,0.046831]
[1734421867820,0.46299547,106760.0,106740.0,0.37768646]
[1734421868123,0.46299547,106760.0,106750.0,0.046831]
[1734421868906,0.46299547,106760.0,106750.0,0.04692493]
[1734421870326,0.46299547,106760.0,106750.0,0.06573348]
[1734421871207,0.46299547,106760.0,106750.0,0.42653348]
[1734421871411,0.46299547,106760.0,106750.0,0.06573348]
[1734421873213,0.46299547,106760.0,106750.0,0.42653348]
[1734421874413,0.33899547,106760.0,106750.0,0.42653348]
[1734421874625,0.33899547,106760.0,106750.0,0.06573348]
[1734421877823,0.28373,106760.0,106750.0,0.06573348]
[1734421879629,0.33899547,106760.0,106750.0,0.06573348]
[1734421881416,0.28373,106760.0,106750.0,0.06573348]
[1734421884415,0.28373,106760.0,106750.0,0.42653348]
[1734421884621,0.4783,106770.0,106750.0,0.48179895]
[1734421884935,0.525125,106770.0,106760.0,0.10209247]
[1734421885232,0.524625,106770.0,106760.0,0.10209247]
[1734421886222,0.525125,106770.0,106760.0,0.10209247]
[1734421886422,0.164325,106770.0,106760.0,0.46289247]
[1734421886734,0.0005,106770.0,106760.0,0.51815794]
[1734421887426,0.0005,106770.0,106760.0,0.46289247]
[1734421888135,0.047323,106770.0,106760.0,0.46289247]
[1734421889236,0.046823,106770.0,106760.0,0.46289247]
[1734421892834,0.046823,106770.0,106760.0,0.49597006]
[1734421896233,0.10208847,106770.0,106760.0,0.39387759]
[1734421896431,0.46288847,106770.0,106760.0,0.03307759]
[1734421896621,0.46288847,106770.0,106750.0,0.67093348]
[1734421896827,0.10209347,106760.0,106750.0,0.67093348]
[1734421897734,0.046828,106760.0,106750.0,0.75935045]
[1734421897941,0.046828,106760.0,106750.0,0.09888498]
[1734421897942,0.05526547,106760.0,106750.0,0.09888498]
[1734421898239,0.47869347,106760.0,106750.0,0.09888498]
[1734421899231,0.47869347,106760.0,106750.0,0.45968498]
[1734421899632,0.47869347,106760.0,106750.0,0.09888498]
[1734421900031,0.47869347,106760.0,106750.0,0.05205398]
[1734421900232,0.83949347,106760.0,106750.0,0.05205398]
[1734421901541,0.89475894,106760.0,106750.0,0.05205398]
[1734421902236,0.89475894,106760.0,106750.0,0.03324543]
[1734421902437,0.92844747,106760.0,106750.0,0.03324543]
[1734421905534,0.873182,106760.0,106750.0,0.03324543]
[1734421907837,0.92844747,106760.0,106750.0,0.03324543]
[1734421908344,0.92844747,106760.0,106750.0,9.393e-05]
[1734421911141,0.046832,106750.0,106740.0,0.0005]
[1734421911344,0.046832,106750.0,106730.0,0.01833884]
[1734421911345,0.046837,106740.0,106730.0,0.01833884]
[1734421911642,0.75656794,106740.0,106730.0,0.01833884]
[1734421912130,0.88356794,106740.0,106730.0,0.01843947]
[1734421913535,0.93892086,106740.0,106730.0,0.00010063]
[1734421913739,0.88365539,106740.0,106730.0,0.00010063]
[1734421916041,0.91730869,106740.0,106730.0,0.00010063]
[1734421918346,0.91730869,106740.0,106730.0,0.00060063]
[1734421919244,0.91730869,106740.0,106730.0,0.00010063]
[1734421920351,0.91730869,106740.0,106730.0,0.00060063]
[1734421921252,0.91730869,106740.0,106730.0,0.00010063]
[1734421922242,0.91730869,106740.0,106730.0,0.00060063]
[1734421923353,0.91730869,106740.0,106730.0,0.00010063]
[1734421924261,0.91730869,106740.0,106730.0,0.00060063]
[1734421926253,0.04685,106710.0,106700.0,0.1]
[1734421926444,0.10211547,106710.0,106700.0,0.1]
[1734421927149,0.10211547,106710.0,106700.0,0.10008922]
[1734421927957,0.10211547,106710.0,106700.0,0.14694322]
[1734421928150,0.10211547,106710.0,106700.0,0.19371173]
[1734421928359,0.10211547,106710.0,106700.0,0.26811726]
[1734421928654,0.04685,106710.0,106700.0,0.21285179]
[1734421928840,0.04685,106710.0,106700.0,0.26811726]
[1734421929454,0.10211547,106710.0,106700.0,0.21285179]
[1734421929755,0.10211547,106710.0,106700.0,0.26811726]
[1734421929958,0.10211547,106710.0,106700.0,0.21285179]
[1734421931552,0.10211547,106710.0,106700.0,0.62891726]
[1734421931755,0.04685,106710.0,106700.0,0.62891726]
[1734421935252,0.42996547,106720.0,106700.0,0.62891726]
[1734421935455,0.47681147,106720.0,106710.0,0.0005]
[1734421936360,0.04685,106710.0,106700.0,0.62891726]
[1734421937057,0.04685,106710.0,106700.0,0.098564]
[1734421937255,0.04685,106710.0,106700.0,0.04329853]
[1734421937565,0.10211547,106710.0,106700.0,0.37994006]
[1734421937953,0.10211547,106710.0,106700.0,0.01914006]
[1734421938147,0.10211547,106710.0,106700.0,0.00011385]
[1734421938359,0.10211547,106710.0,106680.0,0.531963]
[1734421938360,0.046859,106690.0,106680.0,0.531963]
[1734421938566,0.046863,106680.0,106670.0,0.658767]
[1734421938767,0.046863,106680.0,106670.0,0.71403247]
[1734421939153,0.046863,106680.0,106670.0,0.76132434]
[1734421939362,0.046863,106680.0,106670.0,0.7619032]
[1734421940056,0.81420301,106700.0,106670.0,0.74407374]
[1734421941363,0.81420301,106700.0,106670.0,0.76255774]
[1734421942160,0.08430301,106690.0,106670.0,0.67825473]
[1734421942953,0.86219737,106700.0,106670.0,0.76255774]
[1734421943854,0.77789436,106700.0,106670.0,0.76255774]
[1734421945653,0.77789436,106700.0,106680.0,0.08430301]
[1734421946647,0.77789436,106700.0,106670.0,0.67825473]
[1734421946648,0.77789436,106700.0,106690.0,0.08430301]
[1734421946851,0.53392965,106710.0,106690.0,0.44510301]
[1734421947053,0.17312965,106710.0,106700.0,0.08430301]
[1734421947874,0.17312965,106710.0,106690.0,0.6121]
[1734421948067,0.17312965,106710.0,106690.0,0.69640301]
[1734421948566,0.7173,106720.0,106690.0,0.69640301]
[1734421948864,0.80160301,106720.0,106690.0,0.69640301]
[1734421949162,0.80160301,106720.0,106690.0,0.3608]
[1734421949366,0.08430301,106710.0,106690.0,0.3608]
[1734421949663,0.32200301,106700.0,106690.0,0.3608]
[1734421949853,0.44660301,106700.0,106690.0,0.3608]
[1734421950054,0.85425801,106700.0,106670.0,0.80852474]